bitfinex-derivatives/quotes_SOLF0:USTF0_20250606
["timestamp","ask_amount","ask_price","bid_price","bid_amount"]
[1749220934673,0.04348847,151.61,151.58,0.04613244]
[1749220934982,0.04348847,151.61,151.6,6.5914]
[1749220935481,0.04348847,151.61,151.59,8.08807386]
[1749220935680,0.04348847,151.61,151.6,6.5913]
[1749220935979,0.04348847,151.61,151.58,8.1342063]
[1749220936278,0.04348847,151.61,151.59,6.5916]
[1749220936473,0.04348847,151.61,151.58,8.1342063]
[1749220936982,0.04348847,151.61,151.6,6.5913]
[1749220937186,6.5892,151.65,151.6,8.08807386]
[1749220937386,6.5892,151.65,151.62,6.5903]
[1749220937684,6.5896,151.64,151.6,8.08807386]
[1749220938170,2.1504,151.72,151.6,8.08807386]
[1749220938171,4.73512225,151.76,151.63,33.0394]
[1749220938371,351.9669336,151.89,151.63,33.0394]
[1749220938372,2.1504,151.83,151.72,8.07865173]
[1749220938576,2.1504,151.83,151.67,8.24945361]
[1749220938577,8.07865173,151.78,151.67,8.24945361]
[1749220938779,6.5845,151.76,151.68,35.8]
[1749220939080,8.07865173,151.78,151.69,43.87865173]
[1749220939277,0.05001965,151.75,151.72,0.04369263]
[1749220940172,6.63501965,151.75,151.72,0.04369263]
[1749220940373,0.05001965,151.75,151.72,0.04369263]
[1749220941076,6.63511965,151.75,151.72,0.04369263]
[1749220941277,0.05001965,151.75,151.72,0.04369263]
[1749220942382,6.5853,151.74,151.72,0.04369263]
[1749220944280,6.63501965,151.75,151.72,0.04369263]
[1749220944975,0.05001965,151.75,151.72,6.62949263]
[1749220945183,0.05001965,151.75,151.72,0.04369263]
[1749220945581,6.5856,151.74,151.72,0.04369263]
[1749220945775,0.05001965,151.75,151.72,0.04369263]
[1749220946781,6.63521965,151.75,151.72,0.04369263]
[1749220946981,0.05001965,151.75,151.72,0.04369263]
[1749220947488,6.63501965,151.75,151.72,0.04369263]
[1749220947885,0.05001965,151.75,151.72,0.04369263]
[1749220948879,6.5856,151.74,151.72,0.04369263]
[1749220950380,6.63481965,151.75,151.72,0.04369263]
[1749220951087,0.05001965,151.75,151.72,0.04369263]
[1749220951785,0.05001965,151.75,151.72,6.62969263]
[1749220951980,0.05001965,151.75,151.72,0.04369263]
[1749220952487,0.05001965,151.75,151.73,12.11009445]
[1749220953087,0.05001965,151.75,151.73,6.5856]
[1749220953283,0.05001965,151.75,151.73,12.11009445]
[1749220953682,0.05001965,151.75,151.74,6.5852]
[1749220955082,415.44,151.85,151.78,6.5831]
[1749220955277,415.44,151.85,151.79,12.11009445]
[1749220955484,35.78,151.85,151.79,12.11009445]
[1749220956079,0.04569568,151.84,151.8,0.04253544]
[1749220956291,0.04569568,151.84,151.81,12.11009445]
[1749220956682,0.04569568,151.84,151.82,6.5814]
[1749220957382,0.04569568,151.84,151.81,18.69209445]
[1749220957589,0.04569568,151.84,151.81,12.11009445]
[1749220957886,6.62679568,151.84,151.81,12.11009445]
[1749220958090,0.04569568,151.84,151.8,0.04253544]
[1749220958287,0.04569568,151.84,151.8,12.15262989]
[1749220959081,6.5817,151.82,151.8,12.15262989]
[1749220959279,6.5817,151.82,151.81,8.06122184]
[1749220959684,6.5821,151.81,151.8,0.04253544]
[1749220960695,6.5819,151.82,151.8,0.04253544]
[1749220960893,0.04569568,151.84,151.8,8.10375728]
[1749220961282,6.5821,151.81,151.8,0.04253544]
[1749220962795,6.5814,151.83,151.8,0.04253544]
[1749220963094,6.5814,151.83,151.81,8.06122184]
[1749220963593,6.5817,151.82,151.81,8.06122184]
[1749220964286,6.5817,151.82,151.74,2.1242]
[1749220964287,14.65130544,151.82,151.67,8.24945361]
[1749220964593,12.48390544,151.81,151.74,8.07130544]
[1749220964891,6.5841,151.77,151.74,8.07130544]
[1749220965285,6.62818201,151.77,151.74,8.11857372]
[1749220965683,6.5844,151.76,151.74,8.11857372]
[1749220965987,0.04408201,151.77,151.74,0.04726828]
[1749220966884,6.5847,151.75,151.74,0.04726828]
[1749220971294,6.5867,151.71,151.69,35.6]
[1749220972891,6.63533578,151.72,151.69,35.6]
[1749220973899,6.5865,151.71,151.69,35.6]
[1749220974495,6.5869,151.7,151.69,35.6]
[1749220974699,0.04913578,151.72,151.69,35.6]
[1749220975099,6.5867,151.71,151.69,35.6]
[1749220975503,12.10832689,151.71,151.68,0.05059887]
[1749220975696,6.5873,151.69,151.68,0.05059887]
[1749220976796,12.10832689,151.69,151.61,12.10832689]
[1749220977001,12.10832689,151.67,151.61,35.62]
[1749220977199,6.60913109,151.69,151.55,387.56945361]
[1749220977395,6.5907,151.62,151.56,35.62]
[1749220977699,6.5907,151.62,151.56,47.72832689]
[1749220977897,0.05082486,151.61,151.57,0.04630548]
[1749220979404,0.05082486,151.61,151.59,6.5914]
[1749220979801,0.05082486,151.61,151.57,0.04630548]
[1749220980195,0.05082486,151.61,151.6,6.5913]
[1749220980606,0.05082486,151.61,151.6,54.31962689]
[1749220981102,0.05082486,151.61,151.6,42.2113]
[1749220981500,0.05082486,151.61,151.6,35.62]
[1749220981998,0.05082486,151.61,151.6,42.2112]
[1749220984906,6.64162486,151.61,151.58,6.592]
[1749220985502,6.64162486,151.61,151.57,35.66630548]
[1749220985503,0.05082486,151.61,151.57,35.66630548]
[1749220985700,12.15915175,151.61,151.57,0.04630548]
[1749220985900,6.5919,151.58,151.57,0.04630548]
[1749220986705,6.5917,151.59,151.57,0.04630548]
[1749220986906,2.2556,151.6,151.57,0.04630548]
[1749220987106,0.05082486,151.61,151.57,0.04630548]
[1749220987311,0.05082486,151.61,151.58,6.5917]
[1749220987514,0.05082486,151.61,151.57,0.04630548]
[1749220987515,0.05082486,151.61,151.57,12.15463237]
[1749220988408,0.05082486,151.61,151.59,6.5914]
[1749220989905,0.05082486,151.61,151.57,0.04630548]
[1749220990614,8.13493918,151.61,151.57,0.04630548]
[1749220990913,0.05082486,151.61,151.57,0.04630548]
[1749220992317,6.5914,151.6,151.57,0.04630548]
[1749220993824,8.13493918,151.61,151.57,0.04630548]
[1749220994226,14.72603918,151.61,151.57,0.04630548]
[1749220994621,8.13493918,151.61,151.57,0.04630548]
[1749220994817,8.08411432,151.59,151.57,0.04630548]
[1749220995426,6.5921,151.58,151.57,0.04630548]
[1749220996125,43.46411432,151.59,151.51,35.38]
[1749220996428,8.08411432,151.56,151.53,6.594]
[1749220996630,14.67751432,151.56,151.53,6.594]
[1749220997129,8.13417158,151.56,151.53,0.04357131]
[1749220998128,8.13417158,151.56,151.53,6.63757131]
[1749220998628,8.13417158,151.56,151.53,6.63777131]
[1749220998828,0.05005726,151.56,151.53,0.04357131]
[1749220999430,8.13417158,151.56,151.53,0.04357131]
[1749220999623,6.5939,151.54,151.53,0.04357131]
[1749220999828,8.13417158,151.56,151.53,0.04357131]
[1749221000524,0.05005726,151.56,151.53,0.04357131]
[1749221000926,0.05005726,151.56,151.55,6.5934]
[1749221005731,45.63351432,151.64,151.55,35.4]
[1749221005930,35.4,151.64,151.58,8.08411432]
[1749221006126,12.65151432,151.66,151.58,8.08411432]
[1749221006633,0.04221947,151.64,151.6,6.63496585]
[1749221006832,0.04221947,151.64,151.6,0.04396585]
[1749221007232,0.04221947,151.64,151.62,6.5902]
[1749221007633,0.04221947,151.64,151.6,0.04396585]
[1749221008133,6.63181947,151.64,151.6,0.04396585]
[1749221008725,6.63181947,151.64,151.61,6.5905]
[1749221009131,0.04221947,151.64,151.6,0.04396585]
[1749221009834,0.04221947,151.64,151.63,6.59]
[1749221010728,0.04221947,151.64,151.6,0.04396585]
[1749221010729,6.63201947,151.64,151.6,0.04396585]
[1749221010925,0.04221947,151.64,151.6,0.04396585]
[1749221011129,0.04221947,151.64,151.6,6.63526585]
[1749221011333,0.04221947,151.64,151.6,0.04396585]
[1749221011936,0.04221947,151.64,151.61,8.08411432]
[1749221012139,0.04221947,151.64,151.62,6.59]
[1749221013038,0.04221947,151.64,151.63,6.59]
[1749221013433,0.04221947,151.64,151.63,14.67411432]
[1749221013833,0.04221947,151.64,151.63,6.59]
[1749221014932,0.04221947,151.64,151.6,0.04396585]
[1749221015328,8.08411432,151.63,151.6,0.04396585]
[1749221015535,8.08411432,151.61,151.53,43.46411432]
[1749221015836,6.592,151.59,151.53,43.46411432]
[1749221016028,8.08411432,151.59,151.55,6.5932]
[1749221016431,8.12852272,151.59,151.55,0.04622077]
[1749221017333,0.0444084,151.59,151.55,8.13033509]
[1749221018134,0.0444084,151.59,151.57,6.5925]
[1749221018334,0.0444084,151.59,151.55,8.13033509]
[1749221019043,0.0444084,151.59,151.56,6.5929]
[1749221019241,0.0444084,151.59,151.55,8.13033509]
[1749221019638,6.6363084,151.59,151.56,6.593]
[1749221019837,0.0444084,151.59,151.55,8.13033509]
[1749221020338,0.0444084,151.59,151.57,6.5924]
[1749221021542,0.0444084,151.59,151.56,6.5929]
[1749221022242,6.5922,151.58,151.55,14.72363509]
[1749221023143,6.5922,151.58,151.56,6.5929]
[1749221023353,6.5926,151.57,151.55,0.04622077]
[1749221023645,0.0444084,151.59,151.55,0.04622077]
[1749221023839,6.5926,151.57,151.55,0.04622077]
[1749221024143,8.08411432,151.56,151.55,0.04622077]
[1749221024444,14.67711432,151.56,151.55,0.04622077]
[1749221025636,0.0444084,151.59,151.55,0.04622077]
[1749221026146,6.6363084,151.59,151.55,6.63952077]
[1749221026344,0.0444084,151.59,151.55,8.13033509]
[1749221026549,0.0444084,151.59,151.57,6.5924]
[1749221027047,0.0444084,151.59,151.55,0.04622077]
[1749221027242,6.6363084,151.59,151.55,6.63942077]
[1749221027444,6.6363084,151.59,151.55,0.04622077]
[1749221027644,0.0444084,151.59,151.55,0.04622077]
[1749221027946,6.5922,151.58,151.55,6.63942077]
[1749221028643,0.0444084,151.59,151.55,0.04622077]
[1749221030743,14.67711432,151.56,151.55,0.04622077]
[1749221031446,6.5942,151.54,151.51,35.36]
[1749221031647,8.08411432,151.56,151.51,35.36]
[1749221032045,8.08411432,151.56,151.51,41.9552]
[1749221032457,6.5939,151.54,151.52,0.04407975]
[1749221032647,0.04337265,151.55,151.52,0.04407975]
[1749221032954,6.63717265,151.55,151.52,0.04407975]
[1749221033157,0.04337265,151.55,151.52,6.63877975]
[1749221033651,6.63687265,151.55,151.52,0.04407975]
[1749221034351,0.04337265,151.55,151.53,6.5943]
[1749221034758,0.04337265,151.55,151.52,0.04407975]
[1749221035455,0.04337265,151.55,151.54,6.5939]
[1749221038157,0.04337265,151.55,151.53,6.5942]
[1749221038357,0.04337265,151.55,151.52,0.04407975]
[1749221038562,0.04337265,151.55,151.52,6.63857975]
[1749221039050,6.63707265,151.55,151.52,6.63857975]
[1749221040850,0.04337265,151.55,151.53,6.5943]
[1749221041259,6.63687265,151.55,151.52,6.63857975]
[1749221041962,0.04337265,151.55,151.53,6.5942]
[1749221042267,0.04337265,151.55,151.54,8.08411432]
[1749221042560,0.04337265,151.55,151.54,14.67801432]
[1749221042758,6.5915,151.6,151.54,8.08411432]
[1749221042953,39.8436,151.62,151.56,8.08411432]
[1749221043559,6.5912,151.61,151.58,6.5919]
[1749221043862,0.05082342,151.61,151.58,0.0493808]
[1749221044459,6.5917,151.59,151.58,0.0493808]
[1749221044657,8.08411432,151.6,151.53,35.38]
[1749221044859,6.5925,151.58,151.55,6.5934]
[1749221045056,8.08411432,151.6,151.55,6.5934]
[1749221045658,0.04914539,151.59,151.56,0.04391478]
[1749221046861,6.64114539,151.59,151.56,6.63691478]
[1749221047061,6.64114539,151.59,151.56,0.04391478]
[1749221047654,0.04914539,151.59,151.56,0.04391478]
[1749221047858,0.04914539,151.59,151.56,6.63681478]
[1749221048365,6.64084539,151.59,151.56,6.63681478]
[1749221048666,0.04914539,151.59,151.56,6.63681478]
[1749221048862,0.04914539,151.59,151.56,0.04391478]
[1749221049657,6.5921,151.58,151.56,0.04391478]
[1749221049861,0.04914539,151.59,151.56,0.04391478]
[1749221050060,6.5924,151.58,151.56,0.04391478]
[1749221050770,0.04914539,151.59,151.56,0.04391478]
[1749221051166,0.04914539,151.59,151.57,6.5924]
[1749221051468,0.04914539,151.59,151.56,0.04391478]
[1749221052268,0.04914539,151.59,151.57,6.5922]
[1749221052461,0.04914539,151.59,151.56,0.04391478]
[1749221053370,0.04914539,151.59,151.58,6.5921]
[1749221053762,4.5120678,151.64,151.57,43.46411432]
[1749221053967,35.38,151.65,151.58,8.08411432]
[1749221054168,4.51207752,151.64,151.58,8.08411432]
[1749221054365,6.59,151.63,151.6,6.5913]
[1749221054673,6.64027624,151.63,151.6,6.64124385]
[1749221055265,0.05027624,151.63,151.6,0.04994385]
[1749221055966,6.64037624,151.63,151.6,6.64094385]
[1749221056468,0.05027624,151.63,151.61,6.5906]
[1749221056869,6.64047624,151.63,151.6,6.64104385]
[1749221057170,0.05027624,151.63,151.6,0.04994385]
[1749221059065,6.5908,151.61,151.6,0.04994385]
[1749221059863,11.14276573,151.61,151.6,0.04994385]
[1749221060569,46.67117095,151.61,151.6,0.04994385]
[1749221060769,54.75528527,151.61,151.6,0.04994385]
[1749221060969,46.67117095,151.61,151.6,0.04994385]
[1749221061272,40.08037095,151.61,151.6,0.04994385]
[1749221061472,14.67471432,151.62,151.6,0.04994385]
[1749221062373,6.5908,151.61,151.6,0.04994385]
[1749221065671,6.5908,151.61,151.54,47.81014957]
[1749221065672,8.08411432,151.59,151.54,35.52]
[1749221065870,8.08411432,151.57,151.52,8.24945361]
[1749221066268,37.7019,151.6,151.53,16.33356793]
[1749221066473,0.0480448,151.58,151.55,0.04487552]
[1749221066672,0.0480448,151.58,151.55,8.12898984]
[1749221067068,0.0480448,151.58,151.56,6.5926]
[1749221067979,0.0480448,151.58,151.57,6.5926]
[1749221072087,0.0480448,151.58,151.57,14.67671432]
[1749221072286,35.52,151.63,151.59,6.5914]
[1749221072586,6.5905,151.62,151.59,6.5914]
[1749221072773,8.08411432,151.65,151.59,8.08411432]
[1749221073180,4.51835758,151.64,151.57,16.33356793]
[1749221073377,0.04704405,151.62,151.59,0.04620402]
[1749221073679,0.04704405,151.62,151.6,6.5909]
[1749221073875,0.04704405,151.62,151.59,0.04620402]
[1749221074076,6.5913,151.6,151.59,0.04620402]
[1749221075687,6.591,151.61,151.59,0.04620402]
[1749221076685,6.591,151.61,151.59,6.63780402]
[1749221078094,0.04704405,151.62,151.59,0.04620402]
[1749221078597,0.04704405,151.62,151.59,6.63770402]
[1749221079098,6.63774405,151.62,151.59,6.63770402]
[1749221079296,0.04704405,151.62,151.6,6.5912]
[1749221079790,6.63744405,151.62,151.59,6.63750402]
[1749221080794,6.63744405,151.62,151.6,6.5912]
[1749221080996,6.63744405,151.62,151.59,0.04620402]
[1749221081190,0.04704405,151.62,151.59,0.04620402]
[1749221081386,0.04704405,151.62,151.6,6.5912]
[1749221082090,0.04704405,151.62,151.59,0.04620402]
[1749221082800,0.04704405,151.62,151.6,6.591]
[1749221083499,6.63754405,151.62,151.59,6.63770402]
[1749221083798,0.04704405,151.62,151.59,0.04620402]
[1749221083999,0.04704405,151.62,151.61,6.5908]
[1749221084797,0.04704405,151.62,151.6,14.67521432]
[1749221084996,0.04704405,151.62,151.59,35.56620402]
[1749221085690,6.5911,151.61,151.59,35.56620402]
[1749221085894,0.04704405,151.62,151.59,35.56620402]
[1749221086299,6.63774405,151.62,151.59,42.15770402]
[1749221087403,0.04704405,151.62,151.59,35.56620402]
[1749221087804,0.04704405,151.62,151.59,0.04620402]
[1749221087805,6.5913,151.6,151.59,0.04620402]
[1749221088494,11.14767574,151.6,151.59,0.04620402]
[1749221088700,11.14769943,151.6,151.59,0.04620402]
[1749221089006,4.55605929,151.6,151.59,0.04620402]
[1749221089205,35.20704405,151.62,151.59,0.04620402]
[1749221089500,4.5613553,151.61,151.58,8.08411432]
[1749221089697,35.16,151.65,151.58,8.08411432]
[1749221089894,4.56121985,151.64,151.62,6.5902]
[1749221090096,4.56121985,151.63,151.62,6.5902]
[1749221090293,35.16,151.65,151.58,8.08411432]
[1749221090498,0.0484748,151.63,151.6,8.13241976]
[1749221090905,0.0484748,151.63,151.62,6.5904]
[1749221100209,0.0484748,151.63,151.61,6.5906]
[1749221100410,0.0484748,151.63,151.6,43.29241976]
[1749221100806,0.0484748,151.63,151.62,6.5904]
[1749221102211,0.0484748,151.63,151.61,6.5906]
[1749221102605,0.0484748,151.63,151.6,35.20830544]
[1749221102906,0.0484748,151.63,151.61,6.5906]
[1749221103907,0.0484748,151.63,151.62,6.5904]
[1749221104709,0.0484748,151.63,151.61,6.5907]
[1749221104910,0.0484748,151.63,151.6,35.20830544]
[1749221105112,0.0484748,151.63,151.6,0.04830544]
[1749221105316,0.0484748,151.63,151.61,6.5906]
[1749221105711,0.0484748,151.63,151.6,0.04830544]
[1749221105913,0.0484748,151.63,151.6,6.63940544]
[1749221106109,6.6386748,151.63,151.6,6.63940544]
[1749221106310,0.0484748,151.63,151.6,0.04830544]
[1749221106516,0.0484748,151.63,151.6,6.63940544]
[1749221106715,6.5908,151.61,151.6,0.04830544]
[1749221107215,6.5906,151.62,151.6,0.04830544]
[1749221108515,0.0484748,151.63,151.6,0.04830544]
[1749221109117,6.5906,151.62,151.6,0.04830544]
[1749221109615,0.0484748,151.63,151.6,6.63950544]
[1749221109810,6.6385748,151.63,151.6,6.63950544]
[1749221110216,0.0484748,151.63,151.61,6.5908]
[1749221110612,0.0484748,151.63,151.6,0.04830544]
[1749221111007,6.5908,151.61,151.6,0.04830544]
[1749221111207,6.5908,151.61,151.54,47.3422113]
[1749221111208,4.57111847,151.61,151.54,43.24411432]
[1749221111412,4.57114383,151.6,151.56,6.5927]
[1749221111618,6.5916,151.6,151.56,6.5927]
[1749221111810,8.08411432,151.62,151.56,6.5927]
[1749221112018,6.592,151.59,151.54,35.16]
[1749221112214,6.592,151.59,151.57,0.04295527]
[1749221112716,6.63335264,151.61,151.57,0.04295527]
[1749221112914,4.5710411,151.6,151.57,0.04295527]
[1749221113119,0.04235264,151.61,151.57,0.04295527]
[1749221113321,11.1625688,151.6,151.57,0.04295527]
[1749221113514,6.5915,151.6,151.57,0.04295527]
[1749221113819,0.04235264,151.61,151.57,0.04295527]
[1749221114014,4.56045279,151.6,151.57,0.04295527]
[1749221114320,6.5916,151.6,151.57,6.63555527]
[1749221116418,6.63335264,151.61,151.58,6.5921]
[1749221116619,0.04235264,151.61,151.57,0.04295527]
[1749221116917,6.5921,151.59,151.57,0.04295527]
[1749221117119,8.12646696,151.61,151.57,0.04295527]
[1749221117517,6.5917,151.6,151.57,0.04295527]
[1749221117719,8.12646696,151.61,151.57,0.04295527]
[1749221118118,6.5917,151.6,151.57,0.04295527]
[1749221118423,6.5917,151.6,151.57,6.63535527]
[1749221118817,0.04235264,151.61,151.58,6.5921]
[1749221119017,0.04235264,151.61,151.57,0.04295527]
[1749221119419,6.63345264,151.61,151.57,0.04295527]
[1749221119624,0.04235264,151.61,151.57,0.04295527]
[1749221120025,6.5913,151.6,151.57,0.04295527]
[1749221120722,6.5918,151.59,151.57,0.04295527]
[1749221121521,8.08411432,151.58,151.57,0.04295527]
[1749221121720,12.63653735,151.58,151.53,6.5942]
[1749221121926,8.08411432,151.58,151.51,43.36411432]
[1749221122225,8.08411432,151.54,151.48,35.28]
[1749221122427,6.5955,151.51,151.47,12.1822113]
[1749221122618,0.04576025,151.51,151.47,0.04516831]
[1749221122926,6.5959,151.5,151.47,0.04516831]
[1749221123125,0.04576025,151.51,151.47,0.04516831]
[1749221123422,0.04576025,151.51,151.49,8.08411432]
[1749221123824,0.04576025,151.51,151.47,8.12928263]
[1749221124020,6.64106025,151.51,151.47,8.12928263]
[1749221124223,6.64106025,151.51,151.47,6.64176831]
[1749221124427,0.04576025,151.51,151.47,0.04516831]
[1749221124725,6.5957,151.5,151.47,0.04516831]
[1749221125923,0.04576025,151.51,151.47,0.04516831]
[1749221126721,0.04576025,151.51,151.48,6.5963]
[1749221126722,6.64116025,151.51,151.48,6.5963]
[1749221126922,0.04576025,151.51,151.47,0.04516831]
[1749221127423,6.5956,151.5,151.47,0.04516831]
[1749221128928,6.64116025,151.51,151.47,0.04516831]
[1749221129429,6.64116025,151.51,151.48,6.5962]
[1749221129626,6.64116025,151.51,151.47,0.04516831]
[1749221129828,0.04576025,151.51,151.47,0.04516831]
[1749221130127,0.04576025,151.51,151.49,6.5958]
[1749221132630,0.04576025,151.51,151.5,6.5956]
[1749221132929,0.04576025,151.51,151.47,8.12928263]
[1749221133126,0.04576025,151.51,151.49,6.5959]
[1749221133326,0.04576025,151.51,151.47,8.12928263]
[1749221133630,0.04576025,151.51,151.49,8.08411432]
[1749221133832,0.04576025,151.51,151.5,6.5956]
[1749221134234,0.04576025,151.51,151.47,8.12928263]
[1749221135037,0.04576025,151.51,151.49,6.5958]
[1749221135237,0.04576025,151.51,151.47,8.12928263]
[1749221135536,0.04576025,151.51,151.5,6.5956]
[1749221137827,0.04576025,151.51,151.49,14.68001432]
[1749221138028,0.04576025,151.51,151.47,0.04516831]
[1749221139128,6.5959,151.5,151.47,6.64186831]
[1749221139435,0.04576025,151.51,151.47,0.04516831]
[1749221139631,8.08411432,151.5,151.47,0.04516831]
[1749221139932,8.08411432,151.48,151.39,43.38411432]
[1749221140235,8.08411432,151.46,151.39,43.38411432]
[1749221140539,43.38411432,151.46,151.39,43.38411432]
[1749221140736,6.5985,151.44,151.41,6.5994]
[1749221140929,6.5985,151.44,151.41,0.04904417]
[1749221140930,6.64740556,151.44,151.41,0.04904417]
[1749221141131,0.04890556,151.44,151.41,0.04904417]
[1749221142029,6.64730556,151.44,151.41,6.64844417]
[1749221142331,14.73141988,151.44,151.41,0.04904417]
[1749221142539,8.13301988,151.44,151.41,0.04904417]
[1749221142830,14.73141988,151.44,151.41,0.04904417]
[1749221143435,6.5988,151.43,151.41,0.04904417]
[1749221143832,6.5991,151.42,151.41,0.04904417]
[1749221144028,8.08411432,151.42,151.36,35.3]
[1749221144428,43.38411432,151.42,151.36,8.08411432]
[1749221145029,0.0460832,151.41,151.39,6.6001]
[1749221145232,0.0460832,151.41,151.37,0.046852]
[1749221145433,35.3,151.45,151.4,8.08411432]
[1749221146038,6.5982,151.44,151.41,6.5992]
[1749221146732,0.04701277,151.44,151.42,6.599]
[1749221147439,0.04701277,151.44,151.43,6.5987]
[1749221147834,0.04701277,151.44,151.41,0.04872888]
[1749221148038,0.04701277,151.44,151.42,6.5987]
[1749221148236,0.04701277,151.44,151.41,0.04872888]
[1749221148943,0.04701277,151.44,151.43,6.5987]
[1749221149339,6.5991,151.42,151.41,0.04872888]
[1749221149538,14.68321432,151.42,151.41,0.04872888]
[1749221149737,43.19112709,151.44,151.41,0.04872888]
[1749221149933,0.04701277,151.44,151.41,0.04872888]
[1749221150344,6.64541277,151.44,151.41,6.64782888]
[1749221150851,0.04701277,151.44,151.41,6.64782888]
[1749221151145,0.04701277,151.44,151.41,0.04872888]
[1749221151539,6.599,151.43,151.41,0.04872888]
[1749221152142,6.5991,151.42,151.41,0.04872888]
[1749221152846,6.5988,151.43,151.41,0.04872888]
[1749221153347,6.64541277,151.44,151.41,6.64822888]
[1749221157241,0.04701277,151.44,151.43,6.5987]
[1749221158646,0.04701277,151.44,151.42,6.5989]
[1749221159645,6.64531277,151.44,151.41,6.64812888]
[1749221159845,6.64531277,151.44,151.41,0.04872888]
[1749221159846,0.04701277,151.44,151.41,0.04872888]
[1749221160450,0.04701277,151.44,151.42,6.5989]
[1749221160944,0.04701277,151.44,151.43,6.5987]
[1749221161647,37.2896,151.51,151.43,8.08411432]
[1749221161843,6.76540842,151.5,151.45,8.08411432]
[1749221162038,6.5963,151.49,151.45,8.08411432]
[1749221162346,4.67240806,151.5,151.45,8.08411432]
[1749221162645,0.04266725,151.49,151.48,6.5961]
[1749221162946,2.1638,151.52,151.47,8.08411432]
[1749221163148,35.06,151.54,151.52,6.5945]
[1749221163343,2.1297,151.55,151.51,8.08411432]
[1749221163742,8.7234,151.55,151.52,6.5945]
[1749221163943,8.77240816,151.55,151.52,6.63825243]
[1749221164249,8.77230816,151.55,151.52,0.04375243]
[1749221164647,2.17870816,151.55,151.52,0.04375243]
[1749221164949,6.5941,151.54,151.52,0.04375243]
[1749221165450,2.17870816,151.55,151.53,6.5942]
[1749221165655,2.17870816,151.55,151.52,0.04375243]
[1749221165948,0.04900816,151.55,151.52,0.04375243]
[1749221166345,0.04900816,151.55,151.53,8.08411432]
[1749221166747,0.04900816,151.55,151.54,6.5939]
[1749221167149,0.04900816,151.55,151.53,8.08411432]
[1749221167948,0.04900816,151.55,151.54,6.5939]
[1749221170152,4.74505033,151.59,151.57,6.5925]
[1749221170345,41.6515,151.6,151.57,6.5925]
[1749221170542,4.757477,151.59,151.55,8.08411432]
[1749221170747,35.06,151.6,151.55,8.08411432]
[1749221171151,0.04687611,151.59,151.56,0.04245471]
[1749221171443,6.5924,151.58,151.56,0.04245471]
[1749221171647,8.13099043,151.59,151.56,0.04245471]
[1749221171843,12.88540752,151.59,151.56,0.04245471]
[1749221172049,6.5921,151.58,151.56,0.04245471]
[1749221172446,0.04687611,151.59,151.56,8.12656903]
[1749221172652,0.04687611,151.59,151.57,6.5922]
[1749221172948,0.04687611,151.59,151.56,8.12656903]
[1749221173349,0.04687611,151.59,151.58,6.5921]
[1749221174053,0.04687611,151.59,151.57,6.5924]
[1749221174253,0.04687611,151.59,151.56,0.04245471]
[1749221174455,0.04687611,151.59,151.57,8.08411432]
[1749221174653,0.04687611,151.59,151.58,6.5921]
[1749221175353,8.08411432,151.67,151.58,35.04]
[1749221175549,12.8477908,151.67,151.6,8.08411432]
[1749221175755,6.5895,151.65,151.61,6.5904]
[1749221176158,35.04,151.68,151.61,6.5904]
[1749221176453,0.04785785,151.66,151.63,0.04240947]
[1749221176849,6.5891,151.65,151.63,0.04240947]
[1749221177357,0.04785785,151.66,151.63,0.04240947]
[1749221178454,6.63685785,151.66,151.63,0.04240947]
[1749221178650,0.04785785,151.66,151.63,0.04240947]
[1749221178853,0.04785785,151.66,151.63,8.12652379]
[1749221179061,0.04785785,151.66,151.64,6.5892]
[1749221179249,0.04785785,151.66,151.63,8.12652379]
[1749221179656,0.04785785,151.66,151.65,6.5891]
[1749221180451,2.209,151.73,151.63,0.04240947]
[1749221180651,2.209,151.73,151.65,2.1008]
[1749221180852,6.5853,151.74,151.66,35.14]
[1749221181048,12.27993338,151.89,151.7,8.08411432]
[1749221181254,2.1067,151.81,151.71,35.14]
[1749221181457,0.05075127,151.78,151.74,0.04690721]
[1749221181656,7.09960881,151.85,151.75,37.66]
[1749221181854,4.3991,151.85,151.76,8.08411432]
[1749221182060,4.3991,151.85,151.8,8.08411432]
[1749221182257,2.2675,151.86,151.76,2.1008]
[1749221182458,2.2675,151.86,151.81,8.08411432]
[1749221182658,0.04858466,151.85,151.83,8.08411432]
[1749221183059,6.6509,151.9,151.83,47.42411432]
[1749221183360,6.6509,151.9,151.83,39.34]
[1749221183555,6.6509,151.9,151.85,18.66388035]
[1749221183765,6.6509,151.9,151.83,39.34]
[1749221184058,0.05042579,151.88,151.85,0.04803156]
[1749221184458,0.05042579,151.88,151.79,51.42358035]
[1749221184459,39.39042579,151.88,151.78,418.92]
[1749221184665,51.42358035,151.88,151.78,418.92]